bitfinex/quotes_BTCUSD_20240826
["timestamp","ask_amount","ask_price","bid_price","bid_amount"]
[1724663777954,2.20783936,63761.0,63751.0,0.0004]
[1724663777955,1.242485,63753.0,63751.0,0.0004]
[1724663778165,1.50748506,63753.0,63751.0,0.0004]
[1724663778456,1.52724009,63753.0,63751.0,0.0004]
[1724663778877,1.59717613,63753.0,63751.0,0.0004]
[1724663779311,1.60117613,63753.0,63751.0,0.0004]
[1724663779505,1.53124009,63753.0,63751.0,0.0004]
[1724663779988,1.60117613,63753.0,63751.0,0.0004]
[1724663780136,1.53124009,63753.0,63751.0,0.0004]
[1724663780336,1.60112307,63753.0,63751.0,0.0004]
[1724663781188,1.60812307,63753.0,63751.0,0.0004]
[1724663781407,1.92183307,63753.0,63751.0,0.0004]
[1724663781830,1.85195009,63753.0,63751.0,0.0004]
[1724663782672,1.727432,63752.0,63751.0,0.0004]
[1724663782885,2.36923304,63752.0,63751.0,0.0004]
[1724663783150,1.20899605,63742.0,63741.0,0.0031496]
[1724663783360,0.93131,63734.0,63733.0,0.00825]
[1724663783564,1.245114,63734.0,63733.0,0.00825]
[1724663783767,2.14981486,63734.0,63733.0,0.00825]
[1724663784215,2.19744977,63734.0,63733.0,0.00825]
[1724663784441,2.19744977,63734.0,63705.0,0.313943]
[1724663784442,0.617587,63723.0,63700.0,0.00825]
[1724663784652,2.11523364,63723.0,63706.0,0.46876099]
[1724663784865,1.86011613,63723.0,63706.0,0.46876099]
[1724663785075,1.41911876,63723.0,63705.0,0.0818]
[1724663785363,1.69187159,63723.0,63700.0,0.07045]
[1724663785559,1.37801359,63723.0,63700.0,0.07045]
[1724663785974,1.11926076,63723.0,63700.0,0.07045]
[1724663786174,1.11926076,63723.0,63702.0,0.156979]
[1724663786346,1.44711876,63723.0,63700.0,0.227435]
[1724663786728,1.44711876,63723.0,63701.0,0.156982]
[1724663787083,1.43311876,63723.0,63702.0,0.15698]
[1724663787309,1.43311876,63723.0,63700.0,0.07045]
[1724663787495,1.43311876,63723.0,63701.0,0.156981]
[1724663787667,1.43311876,63723.0,63700.0,0.07045]
[1724663787871,0.72536922,63723.0,63714.0,0.0611]
[1724663788074,0.65860276,63723.0,63714.0,0.0611]
[1724663788272,0.67260276,63723.0,63714.0,0.0611]
[1724663788536,0.65860276,63723.0,63714.0,0.0611]
[1724663789182,0.97246076,63723.0,63714.0,0.0611]
[1724663789583,0.67260276,63723.0,63721.0,0.0802]
[1724663789814,0.03163775,63723.0,63721.0,0.0802]
[1724663790020,0.02603855,63723.0,63721.0,0.0802]
[1724663790418,0.18296755,63723.0,63721.0,0.0802]
[1724663790622,0.49682555,63723.0,63717.0,0.08]
[1724663790907,0.81068355,63723.0,63717.0,0.08]
[1724663791301,0.81068355,63723.0,63714.0,0.0611]
[1724663791880,0.95286156,63723.0,63714.0,0.0611]
[1724663792106,0.65300356,63723.0,63714.0,0.0611]
[1724663792268,0.66700356,63723.0,63714.0,0.0611]
[1724663792463,0.65300356,63723.0,63714.0,0.0611]
[1724663792931,0.99486156,63723.0,63714.0,0.0611]
[1724663793115,0.98086156,63723.0,63714.0,0.0611]
[1724663793581,0.19696755,63723.0,63722.0,0.14795]
[1724663793758,0.50746765,63723.0,63722.0,0.14795]
[1724663794450,0.49346765,63723.0,63722.0,0.14795]
[1724663794625,0.50746765,63723.0,63722.0,0.06885]
[1724663795405,0.49346765,63723.0,63722.0,0.06885]
[1724663795636,0.81932565,63723.0,63722.0,0.00825]
[1724663795837,0.83332565,63723.0,63722.0,0.00825]
[1724663796085,0.81932565,63723.0,63722.0,0.00825]
[1724663796326,0.50546765,63723.0,63722.0,0.00825]
[1724663796527,0.51946765,63723.0,63722.0,0.00825]
[1724663796696,0.83332565,63723.0,63722.0,0.00825]
[1724663797880,0.51946765,63723.0,63722.0,0.00825]
[1724663798335,0.83332565,63723.0,63722.0,0.00825]
[1724663798562,0.51946765,63723.0,63722.0,0.00825]
[1724663799064,0.99041227,63723.0,63722.0,0.00825]
[1724663799346,0.9902235,63723.0,63722.0,0.00825]
[1724663799713,1.3040815,63723.0,63722.0,0.00825]
[1724663800279,0.9902235,63723.0,63722.0,0.00825]
[1724663800576,0.52018749,63723.0,63722.0,0.00825]
[1724663801367,0.83404549,63723.0,63722.0,0.00825]
[1724663802869,0.52018749,63723.0,63722.0,0.00825]
[1724663803071,0.20632949,63723.0,63722.0,0.07455]
[1724663803268,0.04958926,63723.0,63722.0,0.07455]
[1724663803552,0.04958926,63723.0,63722.0,0.626744]
[1724663803768,0.04090861,63723.0,63722.0,0.626744]
[1724663803895,0.04090861,63723.0,63722.0,0.940607]
[1724663804133,0.04090861,63723.0,63722.0,1.43364801]
[1724663804336,0.01639413,63732.0,63727.0,0.2]
[1724663804548,0.0814,63754.0,63727.0,0.2]
[1724663804549,0.46876099,63742.0,63741.0,0.156884]
[1724663804734,0.46876099,63742.0,63741.0,0.616153]
[1724663804936,0.55016099,63760.0,63741.0,0.616153]
[1724663804937,0.01639413,63749.0,63748.0,0.156867]
[1724663805254,0.00340107,63758.0,63748.0,0.08]
[1724663805459,0.00340107,63758.0,63750.0,0.313724]
[1724663805620,0.00340107,63758.0,63755.0,0.15685]
[1724663805993,0.00340107,63758.0,63754.0,0.156851]
[1724663806220,0.00340107,63758.0,63750.0,0.313723]
[1724663806426,0.00340107,63758.0,63748.0,0.08]
[1724663806427,0.01740107,63758.0,63748.0,0.08]
[1724663806610,0.313701,63755.0,63748.0,0.08]
[1724663806817,0.00340107,63754.0,63748.0,0.08]
[1724663806955,0.156862,63751.0,63748.0,0.08]
[1724663807169,0.00340107,63750.0,63748.0,0.08]
[1724663807571,0.005,63749.0,63745.0,0.222373]
[1724663807915,0.005,63749.0,63745.0,0.0655]
[1724663808139,0.156856,63753.0,63747.0,0.156869]
[1724663808783,0.00340107,63752.0,63745.0,0.0655]
[1724663808992,0.003,63750.0,63745.0,0.0655]
[1724663809195,0.00340107,63749.0,63745.0,0.0655]
[1724663809666,0.16026607,63749.0,63745.0,0.0655]
[1724663810050,0.00340107,63748.0,63745.0,0.0655]
[1724663811492,0.00340107,63748.0,63745.0,0.222373]
[1724663811749,0.001,63748.0,63747.0,0.15687]
[1724663812191,0.001,63748.0,63745.0,0.222373]
[1724663812876,0.001,63748.0,63746.0,0.156871]
[1724663813046,0.001,63748.0,63745.0,0.0655]
[1724663813683,0.470583,63751.0,63745.0,0.222373]
[1724663814507,0.001,63748.0,63745.0,0.379248]
[1724663814712,0.001,63748.0,63747.0,0.15687]
[1724663814962,0.001,63748.0,63745.0,0.0655]
[1724663815161,0.001,63748.0,63746.0,0.156872]
[1724663815627,0.156863,63750.0,63746.0,0.156872]
[1724663816224,0.156869,63748.0,63745.0,0.0655]
[1724663816454,0.00340107,63747.0,63744.0,0.156875]
[1724663816604,0.00340107,63747.0,63745.0,0.156875]
[1724663816806,0.00737052,63746.0,63745.0,0.156875]
[1724663817208,0.00737052,63746.0,63740.0,0.37377]
[1724663817443,0.00340107,63745.0,63744.0,0.156875]
[1724663817624,0.004,63751.0,63744.0,0.156875]
[1724663817625,0.156859,63752.0,63744.0,0.313755]
[1724663817829,0.00737052,63751.0,63745.0,0.313745]
[1724663818033,0.4792,63762.0,63748.0,0.0787]
[1724663818034,0.08310751,63761.0,63748.0,0.0787]
[1724663818189,0.32442636,63760.0,63753.0,0.470562]
[1724663818402,0.00734729,63760.0,63756.0,0.313693]
[1724663818621,0.00734729,63760.0,63759.0,0.15684]
[1724663819904,0.00734729,63760.0,63757.0,0.31369]
[1724663820042,0.00734729,63760.0,63758.0,0.156841]
[1724663820242,0.00734729,63760.0,63759.0,0.15684]
[1724663820468,0.02134729,63760.0,63759.0,0.15684]
[1724663820668,0.02134729,63760.0,63759.0,0.549821]
[1724663820921,0.00090751,63761.0,63759.0,0.549821]
[1724663821126,0.00090751,63761.0,63759.0,0.23714]
[1724663821332,0.014,63760.0,63759.0,0.23714]
[1724663821535,0.0214744,63760.0,63759.0,0.23714]
[1724663821688,0.0214744,63760.0,63759.0,0.001]
[1724663821689,0.0074744,63760.0,63759.0,0.001]
[1724663821894,0.0074744,63760.0,63757.0,0.156844]
[1724663822093,0.0074744,63760.0,63755.0,0.313696]
[1724663822292,0.00340107,63759.0,63758.0,0.156843]
[1724663822500,0.0074744,63760.0,63758.0,0.156843]
[1724663822680,0.00748369,63759.0,63758.0,0.156843]
[1724663823097,0.01830858,63761.0,63758.0,0.156843]
[1724663823312,0.00748369,63759.0,63758.0,0.156843]
[1724663823720,0.00430858,63761.0,63758.0,0.156843]
[1724663823925,0.014,63760.0,63758.0,0.156843]
[1724663824126,0.02148137,63760.0,63758.0,0.156843]
[1724663824335,0.00748137,63760.0,63758.0,0.156843]
[1724663824765,0.013,63759.0,63758.0,0.157843]
[1724663824965,0.013,63759.0,63758.0,0.156843]
[1724663825174,0.00764284,63759.0,63758.0,0.156843]
[1724663825289,0.08324284,63759.0,63758.0,0.001]
[1724663825495,0.0756,63759.0,63757.0,0.156844]
[1724663825696,0.0756,63759.0,63748.0,0.393232]
[1724663825697,0.08664391,63759.0,63753.0,0.156854]
[1724663825898,0.08664391,63759.0,63758.0,0.001]
[1724663826096,0.24348591,63759.0,63758.0,0.001]
[1724663826911,0.16788591,63759.0,63758.0,0.001]
[1724663827742,0.02064284,63759.0,63758.0,0.001]
[1724663827993,0.02064284,63759.0,63758.0,0.240243]
[1724663828861,0.02064284,63759.0,63758.0,0.553929]
[1724663830779,0.02064284,63759.0,63758.0,0.471529]
[1724663833181,0.02060284,63759.0,63758.0,0.785215]
[1724663833386,0.013,63759.0,63758.0,0.785215]
[1724663833852,0.013,63759.0,63758.0,0.471529]
[1724663834533,0.02070678,63759.0,63758.0,0.471529]
[1724663834718,0.013,63759.0,63758.0,0.471529]
[1724663835096,0.02070678,63759.0,63758.0,0.471529]
[1724663835308,0.013,63759.0,63758.0,0.471529]
[1724663835475,0.02070678,63759.0,63758.0,0.471529]
[1724663836917,0.02070678,63759.0,63758.0,1.165001]
[1724663837119,0.013,63759.0,63758.0,1.554387]
[1724663837319,0.013,63759.0,63758.0,1.263701]
[1724663838120,0.00090751,63761.0,63760.0,1.097866]
[1724663838323,0.00090751,63761.0,63760.0,1.120866]
[1724663838725,0.00090751,63761.0,63760.0,1.097866]
[1724663838951,0.00090751,63761.0,63760.0,0.78419]
[1724663839691,0.00090751,63761.0,63760.0,0.78519]
[1724663840235,0.00090751,63761.0,63760.0,0.78719]
[1724663846349,0.00090751,63761.0,63760.0,0.473514]
[1724663850349,0.00090751,63761.0,63760.0,0.78719]
[1724663851355,0.00090751,63761.0,63760.0,0.87349]
[1724663851572,0.00090751,63761.0,63760.0,1.187166]
[1724663861760,0.00071874,63761.0,63760.0,1.187166]
[1724663867280,0.00071874,63761.0,63760.0,1.123866]
[1724663869548,0.00071874,63761.0,63760.0,1.42634401]
[1724663870172,0.00071874,63761.0,63760.0,1.74002001]
[1724663870613,0.00071874,63761.0,63760.0,2.25369601]
[1724663870853,0.00071874,63761.0,63760.0,3.15038397]
[1724663871117,0.00071874,63761.0,63760.0,2.79870801]
[1724663871323,0.00071874,63761.0,63760.0,2.84367544]
[1724663871527,0.00071874,63761.0,63760.0,2.84267544]
[1724663871742,0.00171874,63761.0,63760.0,3.31518544]
[1724663871988,0.00171874,63761.0,63760.0,3.32318544]
[1724663872191,0.00171874,63761.0,63760.0,3.26621801]
[1724663872192,0.00071874,63761.0,63760.0,3.26621801]
[1724663872657,0.00171874,63761.0,63760.0,3.32918544]
[1724663873888,0.00071874,63761.0,63760.0,3.31318544]
[1724663874089,0.00071874,63761.0,63760.0,3.28021801]
[1724663874291,0.00171874,63761.0,63760.0,3.28621801]
[1724663875679,0.00171874,63761.0,63760.0,3.13828201]
[1724663876872,0.00171874,63761.0,63760.0,2.94223501]
[1724663877050,0.00171874,63761.0,63760.0,2.86948601]
[1724663877461,0.00171874,63761.0,63760.0,2.74120601]
[1724663877659,0.00171874,63761.0,63760.0,3.04080601]
[1724663878877,0.00171874,63761.0,63760.0,2.96607901]
[1724663879683,0.00171874,63761.0,63760.0,2.65240301]
[1724663879887,0.00171874,63761.0,63760.0,2.34783001]
[1724663880379,0.00171874,63761.0,63760.0,2.28123001]
[1724663883397,0.13911874,63761.0,63760.0,0.961849]
[1724663884574,0.13911874,63761.0,63760.0,0.947849]
[1724663884768,0.13811874,63761.0,63760.0,1.255525]
[1724663884969,0.13911874,63761.0,63760.0,1.258525]
[1724663885314,0.13911874,63761.0,63760.0,1.270525]
[1724663885965,0.13811874,63761.0,63760.0,1.267525]
[1724663886371,0.13911874,63761.0,63760.0,1.270525]
[1724663889108,0.13911874,63761.0,63760.0,1.584201]
[1724663889484,0.07671874,63761.0,63760.0,1.607201]
[1724663890185,0.07671874,63761.0,63760.0,2.07705501]
[1724663890186,0.00171874,63761.0,63760.0,2.07705501]
[1724663891514,0.00171874,63761.0,63760.0,2.34285501]
[1724663896232,0.00171874,63761.0,63760.0,2.65653101]
[1724663896434,0.00171874,63761.0,63760.0,3.01507901]
[1724663896767,0.00171874,63761.0,63760.0,3.09637901]
[1724663897091,0.00171874,63761.0,63760.0,3.41005501]
[1724663897827,0.00171874,63761.0,63760.0,3.09737901]
[1724663898068,0.00171874,63761.0,63760.0,3.45802227]
[1724663898293,0.00171874,63761.0,63760.0,3.48150591]
[1724663898716,0.00049001,63765.0,63764.0,2.13456083]
[1724663898887,0.00049001,63765.0,63764.0,6.05402555]
[1724663899089,0.00049001,63765.0,63764.0,6.03672684]
[1724663899262,0.00049001,63765.0,63764.0,5.99386941]
[1724663899735,0.00090751,63774.0,63773.0,1.412254]
[1724663899912,0.00090751,63774.0,63773.0,2.81391684]
[1724663900113,0.08280751,63794.0,63785.0,1.50588783]
[1724663900313,0.08280751,63794.0,63785.0,2.66994884]
[1724663900314,0.00090751,63794.0,63785.0,2.66994884]
[1724663900453,0.00090751,63794.0,63785.0,3.96346284]
[1724663901065,0.00090751,63794.0,63785.0,3.93167884]
[1724663901706,0.00090751,63794.0,63785.0,3.94567884]
[1724663903382,0.00090751,63794.0,63785.0,3.96856607]
[1724663903610,0.00090751,63794.0,63785.0,3.95456607]
[1724663903819,0.00090751,63794.0,63785.0,3.94056607]
[1724663904012,0.00090751,63794.0,63785.0,3.95456607]
[1724663904257,0.00190751,63786.0,63785.0,3.96856607]
[1724663905781,0.00090751,63794.0,63785.0,3.96856607]
[1724663905782,0.00090751,63794.0,63786.0,1.725514]
[1724663905932,0.00090751,63794.0,63793.0,0.63050983]
[1724663906137,0.00090751,63794.0,63793.0,1.88398584]
[1724663906339,0.00090751,63794.0,63793.0,2.53401384]
[1724663906556,0.00090751,63794.0,63793.0,2.84752784]
[1724663907392,0.00090751,63794.0,63793.0,2.85852784]
[1724663907926,0.00090751,63794.0,63793.0,2.99672784]
[1724663908345,0.0805,63811.0,63806.0,0.2]
[1724663908561,0.46876099,63813.0,63812.0,0.15671]
[1724663908766,0.0778,63815.0,63814.0,0.783525]
[1724663908926,0.074586,63823.0,63821.0,0.78344]
[1724663909131,0.009086,63823.0,63821.0,2.03643001]
[1724663909337,0.009086,63823.0,63821.0,2.05943001]
[1724663909718,0.009086,63823.0,63821.0,2.06043001]
[1724663910182,0.009086,63823.0,63821.0,2.06934874]
[1724663910550,0.009086,63823.0,63821.0,2.07134874]
[1724663910950,0.009086,63823.0,63821.0,2.41480112]
[1724663911102,0.009086,63823.0,63821.0,2.08234874]
[1724663911467,0.010086,63822.0,63821.0,2.09534874]
[1724663917261,0.010086,63822.0,63821.0,2.71579774]
[1724663917680,0.010086,63822.0,63821.0,2.44787574]
[1724663918597,0.010086,63822.0,63821.0,2.09434874]
[1724663918819,0.146986,63822.0,63821.0,1.44459674]
[1724663918994,0.146986,63822.0,63821.0,1.75797274]
[1724663919832,0.085486,63822.0,63821.0,1.75797274]
[1724663920753,0.085486,63822.0,63821.0,1.78097274]
[1724663923737,0.085486,63822.0,63821.0,2.09434874]
[1724663925492,0.010086,63822.0,63821.0,2.09434874]
[1724663925700,0.010086,63822.0,63821.0,2.09534874]
[1724663925881,0.010086,63822.0,63821.0,2.95271474]
[1724663926082,0.010086,63822.0,63821.0,2.67150374]
[1724663926603,0.010086,63822.0,63821.0,2.65850374]
[1724663926604,0.009086,63822.0,63821.0,2.65850374]
[1724663926964,0.009086,63822.0,63821.0,2.65750374]
[1724663927323,0.009086,63822.0,63821.0,2.67050374]
[1724663927542,0.009086,63822.0,63821.0,2.65850374]
[1724663927745,0.009086,63822.0,63821.0,2.74100374]
[1724663927948,0.009086,63822.0,63821.0,2.75500374]
[1724663928789,0.009086,63822.0,63821.0,2.75400374]
[1724663929003,0.009086,63822.0,63821.0,2.41072474]
[1724663929209,0.009086,63822.0,63821.0,2.76372474]
[1724663929408,0.009086,63822.0,63821.0,2.25764874]
[1724663929614,0.009086,63822.0,63821.0,2.45764874]
[1724663934565,0.009086,63822.0,63821.0,2.29634874]
[1724663937907,0.009086,63822.0,63821.0,2.61072474]
[1724663938305,0.009086,63822.0,63821.0,3.19821474]
[1724663938515,0.009086,63822.0,63821.0,3.03684474]
[1724663938714,0.009086,63822.0,63821.0,2.60972474]
[1724663939192,0.088186,63822.0,63821.0,2.07334874]
[1724663939390,0.154686,63822.0,63821.0,2.07334874]
[1724663940350,0.154686,63822.0,63821.0,2.09634874]
[1724663942997,0.154686,63822.0,63821.0,1.78297274]
[1724663946378,0.088186,63822.0,63821.0,1.78297274]
[1724663946571,0.088186,63822.0,63821.0,2.09634874]
[1724663946773,0.009086,63822.0,63821.0,2.09634874]
[1724663950834,0.009086,63823.0,63822.0,1.411169]
[1724663951199,0.00907501,63825.0,63824.0,0.671041]
[1724663951318,0.00907501,63825.0,63824.0,0.97321325]
[1724663951519,0.00907501,63825.0,63824.0,4.88042525]
[1724663951772,0.00907501,63825.0,63824.0,4.83353125]
[1724663952027,0.00907501,63825.0,63824.0,4.67040882]
[1724663952191,0.00907501,63825.0,63824.0,4.62351425]
[1724663952343,0.00907501,63825.0,63824.0,4.69385525]
[1724663952746,0.00907501,63825.0,63824.0,4.70685525]
[1724663953372,0.00907501,63825.0,63824.0,4.62351425]
[1724663953725,0.00907501,63825.0,63824.0,4.63751425]
[1724663954032,0.00907501,63825.0,63824.0,4.70789947]
[1724663954365,0.00907501,63825.0,63824.0,4.73113535]
[1724663954567,0.00907501,63825.0,63824.0,4.65151425]
[1724663954766,0.00907501,63825.0,63824.0,4.75454062]
[1724663954967,0.00907501,63825.0,63824.0,4.76854062]
[1724663955256,0.00907501,63825.0,63824.0,4.65151425]
[1724663955885,0.00907501,63825.0,63824.0,3.573921]
[1724663956046,0.08757501,63825.0,63824.0,2.64764615]
[1724663956217,0.08757501,63825.0,63824.0,2.82907315]
[1724663956416,0.08757501,63825.0,63824.0,2.82807315]
[1724663956620,0.00907501,63825.0,63824.0,2.78113001]
[1724663956848,0.00907501,63825.0,63824.0,3.34062331]
[1724663957021,0.00907501,63825.0,63824.0,3.58169483]
[1724663957223,0.00907501,63825.0,63824.0,3.89505583]
[1724663957422,0.00907501,63825.0,63824.0,3.80117465]
[1724663957627,0.00907501,63825.0,63824.0,3.58168034]
[1724663959096,0.00907501,63825.0,63824.0,3.48781365]
[1724663959376,0.00907501,63825.0,63824.0,3.48210018]
[1724663959795,0.00907501,63825.0,63824.0,3.58168817]
[1724663960080,0.00907501,63825.0,63824.0,3.48782148]
[1724663960909,0.00907501,63825.0,63824.0,3.48209458]
[1724663961035,0.00907501,63825.0,63824.0,3.48782001]
[1724663961239,0.00907501,63825.0,63824.0,3.55819673]
[1724663961438,0.00907501,63825.0,63824.0,3.48208873]
[1724663961643,0.00907501,63825.0,63824.0,3.55819666]
[1724663962051,0.00907501,63825.0,63824.0,3.48208873]
[1724663962756,0.00907501,63825.0,63824.0,3.55819574]
[1724663962958,0.00907501,63825.0,63824.0,3.48208873]
[1724663963163,0.00907501,63825.0,63824.0,3.55819559]
[1724663963895,0.00907501,63825.0,63824.0,3.48208438]
[1724663964505,0.00907501,63825.0,63824.0,3.41171201]
[1724663964901,0.00907501,63825.0,63824.0,3.48208438]
[1724663965570,0.00907501,63825.0,63824.0,3.41171201]
[1724663965788,0.00907501,63825.0,63824.0,3.48208438]
[1724663966619,0.00907501,63825.0,63824.0,3.48781908]
[1724663966824,0.00907501,63825.0,63824.0,3.48208568]
[1724663967206,0.00907501,63825.0,63824.0,3.4820851]
[1724663967772,0.00907501,63825.0,63824.0,3.44346219]
[1724663968122,0.00907501,63825.0,63824.0,3.55209752]
[1724663968331,0.00907501,63825.0,63824.0,3.06650119]
[1724663968516,0.08467501,63825.0,63824.0,2.06434201]
[1724663968707,0.14897501,63825.0,63824.0,2.06434201]
[1724663970116,0.14897501,63825.0,63824.0,1.594803]
[1724663971406,0.14897501,63825.0,63824.0,1.617803]
[1724663972107,0.14897501,63825.0,63824.0,2.08734201]
[1724663974410,0.00907501,63825.0,63824.0,2.40070301]
[1724663974609,0.00907501,63825.0,63824.0,3.22151601]
[1724663975385,0.00907501,63825.0,63824.0,3.22251601]
[1724663975589,0.00888643,63825.0,63824.0,3.22251601]
[1724663976220,0.00888643,63825.0,63824.0,3.28631601]
[1724663978511,0.00888643,63825.0,63824.0,3.33324692]
[1724663978721,0.00888643,63825.0,63824.0,3.28631601]
[1724663978925,0.00888643,63825.0,63824.0,3.33323681]
[1724663979132,0.00888643,63825.0,63824.0,3.28631601]
[1724663979337,0.00888643,63825.0,63824.0,3.33323885]
[1724663979554,0.00090751,63829.0,63828.0,1.68176349]
[1724663979758,0.00090751,63829.0,63828.0,2.3309515]
[1724663980751,0.00090751,63829.0,63828.0,2.3439515]
[1724663980978,0.00090751,63829.0,63828.0,3.3103725]
[1724663983731,0.00090751,63829.0,63828.0,3.3093725]
[1724663983989,0.00090751,63829.0,63828.0,2.6672935]
[1724663984224,0.00090751,63829.0,63828.0,2.67710306]
[1724663984481,0.00090751,63829.0,63828.0,2.67610306]
[1724663984956,0.00090751,63829.0,63828.0,2.36276106]
[1724663985221,0.00090751,63829.0,63828.0,2.09103657]
[1724663986540,0.14520751,63829.0,63828.0,2.09103657]
[1724663989759,0.14520751,63829.0,63828.0,1.77769457]
[1724663998584,0.08360751,63829.0,63828.0,2.09103657]
[1724664002000,0.14750751,63829.0,63828.0,2.09103657]
[1724664012043,0.08360751,63829.0,63828.0,2.09103657]
[1724664013955,0.00090751,63829.0,63828.0,2.09103657]
[1724664015947,0.00090751,63829.0,63828.0,2.19969183]
[1724664018478,0.07601894,63829.0,63828.0,2.19969183]
[1724664027054,0.13661894,63829.0,63828.0,2.19969183]
[1724664027486,0.13661894,63829.0,63828.0,2.09103657]
[1724664029158,0.13661894,63829.0,63828.0,1.62151656]
[1724664035189,0.13661894,63829.0,63828.0,1.62234156]
[1724664037998,0.13661894,63829.0,63828.0,1.73099682]
[1724664043881,0.07601894,63829.0,63828.0,1.73099682]
[1724664046298,0.00071894,63829.0,63828.0,2.20051683]
[1724664046463,0.00071894,63829.0,63828.0,2.26601683]
[1724664046920,0.00071894,63829.0,63828.0,2.57935883]
[1724664047124,0.00071894,63829.0,63828.0,2.26601683]
[1724664047333,0.00071894,63829.0,63828.0,2.34851683]
[1724664047733,0.00071894,63829.0,63828.0,2.66185883]
[1724664051719,0.00071894,63829.0,63828.0,2.66285883]
[1724664052374,0.00071894,63829.0,63828.0,2.7098364]
[1724664052766,0.00071894,63829.0,63828.0,2.2474944]
[1724664052910,0.00071894,63829.0,63828.0,2.20051683]
[1724664075341,0.00071894,63829.0,63828.0,2.51385883]
[1724664075543,0.00071894,63829.0,63828.0,2.20051683]
[1724664080135,0.00071894,63829.0,63828.0,2.51385883]
[1724664080340,0.00071894,63829.0,63828.0,2.20051683]
[1724664080535,0.00071894,63829.0,63828.0,2.27966314]
[1724664081428,0.00071894,63829.0,63828.0,2.59300514]
[1724664081598,0.00071894,63829.0,63828.0,2.27966314]
[1724664082021,0.00071894,63829.0,63828.0,2.59300514]
[1724664082286,0.00071894,63829.0,63828.0,2.27966314]
[1724664084270,0.00071894,63829.0,63828.0,2.35796314]
[1724664084474,0.00071894,63829.0,63828.0,2.67130514]
[1724664084674,0.00071894,63829.0,63828.0,2.7182355]
[1724664084940,0.00071894,63829.0,63828.0,2.8769155]
[1724664085128,0.00071894,63829.0,63828.0,2.92384586]
[1724664085351,0.00071894,63829.0,63828.0,2.82998514]
[1724664085767,0.00071894,63829.0,63828.0,2.92384586]
[1724664086250,0.00071894,63829.0,63828.0,2.82998514]
[1724664086633,0.00071894,63829.0,63828.0,2.92388149]
[1724664087274,0.00071894,63829.0,63828.0,2.98777948]
[1724664087494,9.4e-07,63829.0,63828.0,3.20722714]
[1724664087669,0.1437,63848.0,63847.0,0.2]
[1724664088010,0.46916099,63859.0,63849.0,1.096336]
[1724664088011,0.0792,63852.0,63849.0,1.096336]
[1724664088262,0.0792,63852.0,63849.0,1.72237401]
[1724664088461,0.0792,63852.0,63849.0,2.05861301]
[1724664088598,0.0004,63859.0,63849.0,2.37285201]
[1724664088802,0.0004,63859.0,63849.0,3.30816949]
[1724664088999,0.0004,63859.0,63849.0,3.71069795]
[1724664089226,0.0004,63859.0,63849.0,3.71786194]
[1724664089429,0.0004,63859.0,63858.0,0.23]
[1724664089628,0.0004,63859.0,63858.0,2.86072163]
[1724664089801,0.01199196,63859.0,63858.0,2.86072163]
[1724664090011,0.01199196,63859.0,63858.0,2.90755651]
[1724664090012,0.0004,63859.0,63858.0,2.90755651]
[1724664090356,0.0004,63859.0,63858.0,2.86072163]
[1724664090566,0.0004,63859.0,63858.0,2.71119027]
[1724664090771,0.0004,63859.0,63858.0,2.25834101]
[1724664090980,0.0004,63859.0,63858.0,2.16699627]
[1724664091237,0.0805,63859.0,63858.0,2.16699627]
[1724664091567,0.0805,63859.0,63858.0,1.83080227]
[1724664091996,0.0805,63859.0,63858.0,1.85349257]
[1724664092212,0.0805,63859.0,63858.0,1.55429857]
[1724664092434,0.1446,63859.0,63858.0,1.43164331]
[1724664092592,0.1446,63859.0,63858.0,1.44464331]
[1724664092999,0.1446,63859.0,63858.0,1.46764331]
[1724664093821,0.14550751,63859.0,63858.0,1.46764331]
[1724664094029,0.14550751,63859.0,63858.0,1.45364331]
[1724664094368,0.14550751,63859.0,63858.0,1.46464331]
[1724664097590,0.14550751,63859.0,63858.0,1.77783731]
[1724664100482,0.00130751,63859.0,63858.0,2.09103131]
[1724664100687,0.00130751,63859.0,63858.0,2.15163131]
[1724664100891,0.00130751,63859.0,63858.0,2.15263131]
[1724664101729,0.00130751,63859.0,63858.0,2.15163131]
[1724664101941,0.00130751,63859.0,63858.0,1.75483731]
[1724664101942,0.14240751,63859.0,63858.0,1.75483731]
[1724664104075,0.14240751,63859.0,63858.0,1.77783731]
[1724664104290,0.08200751,63859.0,63858.0,1.77783731]
[1724664104478,0.00130751,63859.0,63858.0,1.77783731]
[1724664105580,0.08290751,63859.0,63858.0,1.77783731]
[1724664115815,0.00130751,63859.0,63858.0,1.77783731]
[1724664116020,0.00130751,63859.0,63858.0,1.88638892]
[1724664116201,0.00130751,63859.0,63858.0,2.19958292]
[1724664117921,0.14590751,63859.0,63858.0,1.77783731]
[1724664121543,0.14571901,63859.0,63858.0,1.77783731]
[1724664122304,0.14571901,63859.0,63858.0,1.77783731]
[1724664130735,0.14571901,63859.0,63858.0,1.77866231]
[1724664132821,0.08361901,63859.0,63858.0,1.77866231]
[1724664133882,0.14691901,63859.0,63858.0,1.46546831]
[1724664135330,0.14691901,63859.0,63858.0,1.77866231]
[1724664135734,0.14691901,63859.0,63858.0,1.46546831]
[1724664137135,0.14691901,63859.0,63858.0,1.2862903]
[1724664137543,0.15869093,63859.0,63858.0,1.2862903]
[1724664137744,0.15869093,63859.0,63858.0,0.651212]
[1724664137947,0.15869093,63859.0,63858.0,0.940406]
[1724664138152,0.15869093,63859.0,63858.0,0.947406]
[1724664138153,0.2056539,63859.0,63858.0,0.947406]
[1724664138395,0.20905497,63859.0,63858.0,0.643212]
[1724664138546,0.20905497,63859.0,63858.0,0.477615]
[1724664138747,0.20905497,63859.0,63858.0,0.470615]
[1724664138748,0.162092,63859.0,63858.0,0.470615]
[1724664139057,0.23253646,63859.0,63858.0,0.486615]
[1724664139267,0.162092,63859.0,63858.0,0.486615]
[1724664139467,0.23253646,63859.0,63858.0,0.643212]
[1724664139880,0.162092,63859.0,63858.0,0.643212]
[1724664140273,0.20904195,63859.0,63858.0,0.643212]
[1724664142285,0.162092,63859.0,63858.0,0.643212]
[1724664142688,0.162092,63859.0,63858.0,0.956406]
[1724664142892,0.162092,63859.0,63858.0,1.2696]
[1724664143122,0.162092,63859.0,63858.0,0.956406]
[1724664143735,0.162092,63859.0,63858.0,0.643212]
[1724664143942,0.23253646,63859.0,63858.0,0.643212]
[1724664144374,0.162092,63859.0,63858.0,0.643212]
[1724664144595,0.23253646,63859.0,63858.0,0.643212]
[1724664144797,0.23253646,63859.0,63858.0,0.956406]
[1724664145417,0.162092,63859.0,63858.0,0.956406]